[Event "Titled Tuesday Blitz November 15 Late 2022"]
[White "Prydun, Andriy"]
[Black "Atanasov, Anthony"]
[WhiteFideId "14145898"]
[BlackFideId "2623897"]
[WhiteElo "2163"]
[BlackElo "2048"]
[Result "0-1"]
[Round "03"]
[TimeControl "180+1"]
[Date "2022.11.16"]
[WhiteClock "0:00:56"]
[BlackClock "0:00:04"]

1. d4 {[%clk 0:03:00]}  Nf6 {[%clk 0:01:55]} 2. Nc3 {[%clk 0:03:00]}  d5 {[%clk 0:01:55]} 3. Bf4 {[%clk 0:03:00]}  c5 {[%clk 0:01:55]} 4. e4 {[%clk 0:03:00]}  dxe4 {[%clk 0:01:51]} 5. d5 {[%clk 0:03:00]}  a6 {[%clk 0:01:47]} 6. a4 {[%clk 0:02:56]}  g6 {[%clk 0:01:46]} 7. Bc4 {[%clk 0:02:40]}  Bg7 {[%clk 0:01:44]} 8. Nge2 {[%clk 0:02:39]}  Bf5 {[%clk 0:01:42]} 9. O-O {[%clk 0:02:38]}  Nbd7 {[%clk 0:01:42]} 10. Re1 {[%clk 0:02:34]}  Nb6 {[%clk 0:01:38]} 11. Ba2 {[%clk 0:02:33]}  c4 {[%clk 0:01:39]} 12. d6 {[%clk 0:02:31]}  O-O {[%clk 0:01:33]} 13. dxe7 {[%clk 0:02:29]}  Qxe7 {[%clk 0:01:32]} 14. a5 {[%clk 0:02:28]}  Rfd8 {[%clk 0:01:31]} 15. Qc1 {[%clk 0:02:27]}  Nbd5 {[%clk 0:01:26]} 16. Bxc4 {[%clk 0:02:25]}  Nxf4 {[%clk 0:01:24]} 17. Nxf4 {[%clk 0:02:24]}  Rac8 {[%clk 0:01:23]} 18. Bb3 {[%clk 0:02:20]}  Qe5 {[%clk 0:01:18]} 19. h3 {[%clk 0:02:03]}  Bh6 {[%clk 0:01:17]} 20. Nd3 {[%clk 0:02:03]}  Bxc1 {[%clk 0:01:15]} 21. Nxe5 {[%clk 0:02:02]}  Bxb2 {[%clk 0:01:16]} 22. Nxf7 {[%clk 0:02:00]}  Bxc3 {[%clk 0:01:06]} 23. Nxd8+ {[%clk 0:01:59]}  Kf8 {[%clk 0:00:57]} 24. Nxb7 {[%clk 0:01:58]}  Bxa1 {[%clk 0:00:52]} 25. Rxa1 {[%clk 0:01:57]}  Ke7 {[%clk 0:00:43]} 26. Rd1 {[%clk 0:01:52]}  Rc6 {[%clk 0:00:31]} 27. Nd8 {[%clk 0:01:31]}  Rc8 {[%clk 0:00:29]} 28. Nb7 {[%clk 0:01:31]}  Rc6 {[%clk 0:00:27]} 29. Nd8 {[%clk 0:01:30]}  Rc5 {[%clk 0:00:15]} 30. g4 {[%clk 0:01:19]}  Bd7 {[%clk 0:00:07]} 31. Nb7 {[%clk 0:01:06]}  Rb5 {[%clk 0:00:06]} 32. Nd6 {[%clk 0:01:06]}  Rxa5 {[%clk 0:00:06]} 33. Nxe4 {[%clk 0:01:05]}  Nxe4 {[%clk 0:00:06]} 34. Re1 {[%clk 0:01:06]}  Re5 {[%clk 0:00:02]} 35. f3 {[%clk 0:01:04]}  Bc6 {[%clk 0:00:02]} 36. fxe4 {[%clk 0:01:04]}  Rxe4 {[%clk 0:00:02]} 37. Ra1 {[%clk 0:01:02]}  Bb7 {[%clk 0:00:01]} 38. Kf2 {[%clk 0:01:02]}  Rf4+ {[%clk 0:00:01]} 39. Ke2 {[%clk 0:01:02]}  Re4+ {[%clk 0:00:01]} 40. Kd2 {[%clk 0:01:01]}  Kd6 {[%clk 0:00:02]} 41. Ra5 {[%clk 0:01:00]}  Rd4+ {[%clk 0:00:02]} 42. Ke3 {[%clk 0:00:59]}  Rd1 {[%clk 0:00:03]} 43. h4 {[%clk 0:00:57]}  Rh1 {[%clk 0:00:03]} 44. h5 {[%clk 0:00:57]}  Rh3+ {[%clk 0:00:04]} 45. Kf4 {[%clk 0:00:56]}  h6 {[%clk 0:00:03]} 46. hxg6 {[%clk 0:00:56]}  Rf3# {[%clk 0:00:04]} 0-1


[Site "https://www.chess.com"]

[Event "Titled Tuesday Blitz November 15 Late 2022"]
[White "Przybylski, Wojciech"]
[Black "Grot, Blazej"]
[WhiteFideId "1117599"]
[BlackFideId "21835845"]
[WhiteElo "2221"]
[BlackElo "1822"]
[Result "1-0"]
[Round "03"]
[TimeControl "180+1"]
[Date "2022.11.16"]
[WhiteClock "0:01:20"]
[BlackClock "0:00:02"]

1. d4 {[%clk 0:02:59]}  d5 {[%clk 0:02:58]} 2. Nf3 {[%clk 0:02:57]}  Nf6 {[%clk 0:02:57]} 3. g3 {[%clk 0:02:56]}  c6 {[%clk 0:02:58]} 4. Bg2 {[%clk 0:02:56]}  Bf5 {[%clk 0:02:58]} 5. O-O {[%clk 0:02:55]}  e6 {[%clk 0:02:59]} 6. Nbd2 {[%clk 0:02:54]}  h6 {[%clk 0:02:59]} 7. a4 {[%clk 0:02:54]}  Bd6 {[%clk 0:02:59]} 8. a5 {[%clk 0:02:54]}  O-O {[%clk 0:02:58]} 9. c3 {[%clk 0:02:53]}  Nbd7 {[%clk 0:02:57]} 10. h3 {[%clk 0:02:51]}  Bh7 {[%clk 0:02:57]} 11. Ne1 {[%clk 0:02:46]}  e5 {[%clk 0:02:57]} 12. e3 {[%clk 0:02:46]}  Re8 {[%clk 0:02:56]} 13. b4 {[%clk 0:02:42]}  exd4 {[%clk 0:02:56]} 14. exd4 {[%clk 0:02:40]}  Ne4 {[%clk 0:02:54]} 15. Nxe4 {[%clk 0:02:40]}  Bxe4 {[%clk 0:02:55]} 16. Nd3 {[%clk 0:02:38]}  Nf6 {[%clk 0:02:40]} 17. Nc5 {[%clk 0:02:35]}  Bxg2 {[%clk 0:02:38]} 18. Kxg2 {[%clk 0:02:32]}  Bxc5 {[%clk 0:02:39]} 19. dxc5 {[%clk 0:02:23]}  Ne4 {[%clk 0:02:39]} 20. Qd3 {[%clk 0:02:13]}  Qf6 {[%clk 0:02:31]} 21. Ra3 {[%clk 0:02:13]}  Rad8 {[%clk 0:02:24]} 22. Be3 {[%clk 0:02:12]}  Ng5 {[%clk 0:01:54]} 23. Bd4 {[%clk 0:02:10]}  Qe6 {[%clk 0:01:54]} 24. Rh1 {[%clk 0:02:02]}  Qe2 {[%clk 0:01:35]} 25. Qxe2 {[%clk 0:02:00]}  Rxe2 {[%clk 0:01:36]} 26. a6 {[%clk 0:01:59]}  Rd7 {[%clk 0:01:02]} 27. axb7 {[%clk 0:01:52]}  Rxb7 {[%clk 0:01:03]} 28. Rha1 {[%clk 0:01:50]}  Ree7 {[%clk 0:00:58]} 29. h4 {[%clk 0:01:43]}  Ne6 {[%clk 0:00:56]} 30. Be3 {[%clk 0:01:42]}  d4 {[%clk 0:00:29]} 31. cxd4 {[%clk 0:01:42]}  Rxb4 {[%clk 0:00:29]} 32. Ra4 {[%clk 0:01:38]}  Rxa4 {[%clk 0:00:27]} 33. Rxa4 {[%clk 0:01:37]}  Rb7 {[%clk 0:00:25]} 34. Ra6 {[%clk 0:01:36]}  Rb4 {[%clk 0:00:18]} 35. Rxc6 {[%clk 0:01:33]}  Nxd4 {[%clk 0:00:18]} 36. Rc8+ {[%clk 0:01:32]}  Kh7 {[%clk 0:00:18]} 37. Rc7 {[%clk 0:01:32]}  a5 {[%clk 0:00:15]} 38. Rxf7 {[%clk 0:01:31]}  a4 {[%clk 0:00:14]} 39. Ra7 {[%clk 0:01:30]}  Nc2 {[%clk 0:00:11]} 40. Bd2 {[%clk 0:01:26]}  Rc4 {[%clk 0:00:10]} 41. c6 {[%clk 0:01:25]}  a3 {[%clk 0:00:06]} 42. c7 {[%clk 0:01:24]}  a2 {[%clk 0:00:02]} 43. Rxa2 {[%clk 0:01:20]} 1-0


[Site "https://www.chess.com"]

[Event "Titled Tuesday Blitz November 15 Late 2022"]
[White "Quispe Santacruz, Javier"]
[Black "Kaufman, Raymond"]
[WhiteFideId "3800920"]
[BlackFideId "2015056"]
[WhiteElo "1930"]
[BlackElo "2321"]
[Result "1-0"]
[Round "03"]
[TimeControl "180+1"]
[Date "2022.11.16"]
[WhiteClock "0:00:31"]
[BlackClock "0:01:59"]

1. d4 {[%clk 0:02:53]}  Nf6 {[%clk 0:02:59]} 2. c4 {[%clk 0:02:48]}  e6 {[%clk 0:02:58]} 3. Nf3 {[%clk 0:02:45]}  Bb4+ {[%clk 0:02:58]} 4. Nbd2 {[%clk 0:02:44]}  O-O {[%clk 0:02:50]} 5. a3 {[%clk 0:02:41]}  Be7 {[%clk 0:02:50]} 6. e4 {[%clk 0:02:39]}  d6 {[%clk 0:02:50]} 7. Qc2 {[%clk 0:02:37]}  Nc6 {[%clk 0:02:42]} 8. b4 {[%clk 0:02:37]}  e5 {[%clk 0:02:42]} 9. d5 {[%clk 0:02:37]}  Nd4 {[%clk 0:02:42]} 10. Nxd4 {[%clk 0:02:34]}  exd4 {[%clk 0:02:43]} 11. Bd3 {[%clk 0:02:34]}  Ng4 {[%clk 0:02:42]} 12. O-O {[%clk 0:02:33]}  Bf6 {[%clk 0:02:41]} 13. Bb2 {[%clk 0:02:32]}  Re8 {[%clk 0:02:34]} 14. Nf3 {[%clk 0:02:30]}  a5 {[%clk 0:02:28]} 15. Bxd4 {[%clk 0:02:27]}  Bxd4 {[%clk 0:02:28]} 16. Nxd4 {[%clk 0:02:27]}  axb4 {[%clk 0:02:28]} 17. axb4 {[%clk 0:02:28]}  Rxa1 {[%clk 0:02:29]} 18. Rxa1 {[%clk 0:02:27]}  Qf6 {[%clk 0:02:29]} 19. Nb3 {[%clk 0:02:20]}  Qh4 {[%clk 0:02:21]} 20. h3 {[%clk 0:02:17]}  Ne5 {[%clk 0:02:21]} 21. Ra8 {[%clk 0:02:02]}  f5 {[%clk 0:02:16]} 22. exf5 {[%clk 0:01:57]}  Nf3+ {[%clk 0:02:08]} 23. gxf3 {[%clk 0:01:53]}  Re1+ {[%clk 0:02:06]} 24. Bf1 {[%clk 0:01:11]}  Qg5+ {[%clk 0:02:06]} 25. Kh2 {[%clk 0:01:11]}  Qf4+ {[%clk 0:02:05]} 26. Kg2 {[%clk 0:01:11]}  Qg5+ {[%clk 0:02:05]} 27. Kh2 {[%clk 0:01:10]}  Rxf1 {[%clk 0:02:05]} 28. Rxc8+ {[%clk 0:01:08]}  Kf7 {[%clk 0:02:06]} 29. Rxc7+ {[%clk 0:00:47]}  Kf6 {[%clk 0:02:06]} 30. Qc3+ {[%clk 0:00:43]}  Kxf5 {[%clk 0:01:59]} 31. Rf7+ {[%clk 0:00:31]} 1-0


[Site "https://www.chess.com"]

[Event "Titled Tuesday Blitz November 15 Late 2022"]
[White "Radovanovic, Dusan"]
[Black "Sargsyan, Anna M."]
[WhiteFideId "926868"]
[BlackFideId "13308130"]
[WhiteElo "2341"]
[BlackElo "2284"]
[Result "1-0"]
[Round "03"]
[TimeControl "180+1"]
[Date "2022.11.16"]
[WhiteClock "0:01:15"]
[BlackClock "0:00:58"]

1. e4 {[%clk 0:02:58]}  c6 {[%clk 0:02:59]} 2. d4 {[%clk 0:02:58]}  d5 {[%clk 0:03:00]} 3. e5 {[%clk 0:02:58]}  Bf5 {[%clk 0:03:00]} 4. h4 {[%clk 0:02:58]}  h5 {[%clk 0:02:59]} 5. Bd3 {[%clk 0:02:59]}  Bxd3 {[%clk 0:02:57]} 6. Qxd3 {[%clk 0:03:00]}  e6 {[%clk 0:02:58]} 7. Bg5 {[%clk 0:02:59]}  Qb6 {[%clk 0:02:58]} 8. Nd2 {[%clk 0:02:59]}  Ne7 {[%clk 0:02:59]} 9. Ne2 {[%clk 0:02:58]}  Nf5 {[%clk 0:02:59]} 10. c4 {[%clk 0:02:56]}  Bb4 {[%clk 0:02:57]} 11. b3 {[%clk 0:02:52]}  Bxd2+ {[%clk 0:02:57]} 12. Qxd2 {[%clk 0:02:45]}  O-O {[%clk 0:02:54]} 13. O-O {[%clk 0:02:45]}  Nd7 {[%clk 0:02:51]} 14. c5 {[%clk 0:02:39]}  Qc7 {[%clk 0:02:47]} 15. Ng3 {[%clk 0:02:30]}  Nxg3 {[%clk 0:02:26]} 16. fxg3 {[%clk 0:02:31]}  b6 {[%clk 0:02:25]} 17. Kh2 {[%clk 0:02:19]}  bxc5 {[%clk 0:02:24]} 18. Bf6 {[%clk 0:02:19]}  Kh7 {[%clk 0:01:38]} 19. Bxg7 {[%clk 0:02:10]}  Kxg7 {[%clk 0:01:37]} 20. Qg5+ {[%clk 0:02:08]}  Kh7 {[%clk 0:01:35]} 21. Rf6 {[%clk 0:01:54]}  Nxf6 {[%clk 0:01:06]} 22. exf6 {[%clk 0:01:52]}  Qxg3+ {[%clk 0:01:04]} 23. Qxg3 {[%clk 0:01:52]}  Rg8 {[%clk 0:01:05]} 24. Qe5 {[%clk 0:01:36]}  Rg6 {[%clk 0:00:59]} 25. Qxh5+ {[%clk 0:01:26]}  Kg8 {[%clk 0:00:58]} 26. Qe5 {[%clk 0:01:22]}  cxd4 {[%clk 0:00:58]} 27. h5 {[%clk 0:01:18]}  Rg4 {[%clk 0:00:58]} 28. Kh3 {[%clk 0:01:15]} 1-0


[Site "https://www.chess.com"]

[Event "Titled Tuesday Blitz November 15 Late 2022"]
[White "Reprintsev, Alexander"]
[Black "Thiel, Thomas"]
[WhiteFideId "14100541"]
[BlackFideId "4615964"]
[WhiteElo "2230"]
[BlackElo "2233"]
[Result "1-0"]
[Round "03"]
[TimeControl "180+1"]
[Date "2022.11.16"]
[WhiteClock "0:00:54"]
[BlackClock "0:01:10"]

1. e4 {[%clk 0:02:56]}  d5 {[%clk 0:02:56]} 2. exd5 {[%clk 0:02:54]}  Nf6 {[%clk 0:02:56]} 3. d4 {[%clk 0:02:54]}  Nxd5 {[%clk 0:02:55]} 4. c4 {[%clk 0:02:54]}  Nb6 {[%clk 0:02:54]} 5. Nc3 {[%clk 0:02:55]}  e5 {[%clk 0:02:54]} 6. Nf3 {[%clk 0:02:53]}  exd4 {[%clk 0:02:52]} 7. Nxd4 {[%clk 0:02:48]}  Bb4 {[%clk 0:02:51]} 8. Nb5 {[%clk 0:02:45]}  Qxd1+ {[%clk 0:02:48]} 9. Kxd1 {[%clk 0:02:46]}  Na6 {[%clk 0:02:46]} 10. a3 {[%clk 0:02:45]}  Be7 {[%clk 0:02:44]} 11. Bf4 {[%clk 0:02:40]}  O-O {[%clk 0:02:21]} 12. Nxc7 {[%clk 0:02:33]}  Rd8+ {[%clk 0:02:19]} 13. Kc1 {[%clk 0:02:30]}  Nxc7 {[%clk 0:02:16]} 14. Bxc7 {[%clk 0:02:30]}  Bg5+ {[%clk 0:02:09]} 15. f4 {[%clk 0:02:29]}  Rd7 {[%clk 0:02:04]} 16. Bxb6 {[%clk 0:02:10]}  Bxf4+ {[%clk 0:02:03]} 17. Kc2 {[%clk 0:02:10]}  axb6 {[%clk 0:02:03]} 18. Bd3 {[%clk 0:02:10]}  Rc7 {[%clk 0:02:00]} 19. Nd5 {[%clk 0:02:07]}  Bd6 {[%clk 0:01:41]} 20. Nxc7 {[%clk 0:01:51]}  Bxc7 {[%clk 0:01:42]} 21. g3 {[%clk 0:01:48]}  Be6 {[%clk 0:01:38]} 22. Rhe1 {[%clk 0:01:42]}  Rc8 {[%clk 0:01:37]} 23. a4 {[%clk 0:01:40]}  Bd6 {[%clk 0:01:34]} 24. b3 {[%clk 0:01:39]}  Bc5 {[%clk 0:01:32]} 25. Rad1 {[%clk 0:01:06]}  g6 {[%clk 0:01:31]} 26. Be4 {[%clk 0:01:06]}  Rc7 {[%clk 0:01:30]} 27. Rd8+ {[%clk 0:01:05]}  Kg7 {[%clk 0:01:30]} 28. Kc3 {[%clk 0:01:05]}  Bc8 {[%clk 0:01:18]} 29. Bd5 {[%clk 0:00:58]}  Be7 {[%clk 0:01:10]} 30. Rxe7 {[%clk 0:00:54]} 1-0


[Site "https://www.chess.com"]

[Event "Titled Tuesday Blitz November 15 Late 2022"]
[White "Rodriguez Fontecha, Marcos"]
[Black "Figorito, Nick"]
[WhiteFideId "2256576"]
[BlackFideId "30923689"]
[WhiteElo "2263"]
[BlackElo "2353"]
[Result "1-0"]
[Round "03"]
[TimeControl "180+1"]
[Date "2022.11.16"]
[WhiteClock "0:01:20"]
[BlackClock "0:00:06"]

1. Nf3 {[%clk 0:03:00]}  Nf6 {[%clk 0:03:00]} 2. g4 {[%clk 0:03:00]}  g6 {[%clk 0:03:01]} 3. g5 {[%clk 0:03:00]}  Nd5 {[%clk 0:03:00]} 4. e4 {[%clk 0:02:59]}  Nb6 {[%clk 0:03:00]} 5. a4 {[%clk 0:02:59]}  a5 {[%clk 0:02:58]} 6. h4 {[%clk 0:02:57]}  h6 {[%clk 0:02:57]} 7. d4 {[%clk 0:02:55]}  hxg5 {[%clk 0:02:55]} 8. Bxg5 {[%clk 0:02:56]}  Bg7 {[%clk 0:02:55]} 9. c3 {[%clk 0:02:52]}  d5 {[%clk 0:02:50]} 10. e5 {[%clk 0:02:52]}  Bg4 {[%clk 0:02:50]} 11. Rg1 {[%clk 0:02:51]}  Bh5 {[%clk 0:02:48]} 12. Be2 {[%clk 0:02:51]}  c6 {[%clk 0:02:43]} 13. Nbd2 {[%clk 0:02:48]}  Qc7 {[%clk 0:02:43]} 14. Qc2 {[%clk 0:02:45]}  e6 {[%clk 0:02:42]} 15. Nh2 {[%clk 0:02:41]}  Bxe2 {[%clk 0:02:41]} 16. Kxe2 {[%clk 0:02:42]}  N8d7 {[%clk 0:02:40]} 17. Ng4 {[%clk 0:02:42]}  Nc8 {[%clk 0:02:32]} 18. Rg3 {[%clk 0:02:42]}  Ne7 {[%clk 0:02:33]} 19. Rf3 {[%clk 0:02:39]}  Nf5 {[%clk 0:02:33]} 20. Rh1 {[%clk 0:02:38]}  c5 {[%clk 0:02:22]} 21. Qd3 {[%clk 0:02:24]}  cxd4 {[%clk 0:02:13]} 22. cxd4 {[%clk 0:02:25]}  Rc8 {[%clk 0:02:13]} 23. Ne3 {[%clk 0:02:20]}  Nxe3 {[%clk 0:01:48]} 24. fxe3 {[%clk 0:02:21]}  Qc2 {[%clk 0:01:45]} 25. b3 {[%clk 0:02:18]}  Qxd3+ {[%clk 0:01:42]} 26. Kxd3 {[%clk 0:02:19]}  Bh6 {[%clk 0:01:35]} 27. Rhf1 {[%clk 0:02:19]}  Bxg5 {[%clk 0:01:33]} 28. hxg5 {[%clk 0:02:19]}  Rh7 {[%clk 0:01:30]} 29. e4 {[%clk 0:02:20]}  Nb6 {[%clk 0:01:26]} 30. exd5 {[%clk 0:02:16]}  Nxd5 {[%clk 0:01:27]} 31. Ne4 {[%clk 0:02:15]}  Ke7 {[%clk 0:01:22]} 32. Nd6 {[%clk 0:02:00]}  Rc3+ {[%clk 0:01:20]} 33. Kd2 {[%clk 0:01:55]}  Rh2+ {[%clk 0:01:18]} 34. R3f2 {[%clk 0:01:44]}  Rxb3 {[%clk 0:01:13]} 35. Rxh2 {[%clk 0:01:40]}  Rb2+ {[%clk 0:01:13]} 36. Kd3 {[%clk 0:01:39]}  Rxh2 {[%clk 0:01:04]} 37. Rxf7+ {[%clk 0:01:38]}  Kd8 {[%clk 0:01:04]} 38. Nxb7+ {[%clk 0:01:37]}  Kc8 {[%clk 0:01:05]} 39. Nxa5 {[%clk 0:01:32]}  Rh3+ {[%clk 0:00:59]} 40. Kc4 {[%clk 0:01:30]}  Ra3 {[%clk 0:00:46]} 41. Kb5 {[%clk 0:01:23]}  Rd3 {[%clk 0:00:41]} 42. Nc6 {[%clk 0:01:20]}  Rb3+ {[%clk 0:00:38]} 43. Kc5 {[%clk 0:01:19]}  Rc3+ {[%clk 0:00:03]} 44. Kd6 {[%clk 0:01:18]}  Rxc6+ {[%clk 0:00:03]} 45. Kxc6 {[%clk 0:01:18]}  Nb4+ {[%clk 0:00:04]} 46. Kd6 {[%clk 0:01:18]}  Nc2 {[%clk 0:00:02]} 47. Kxe6 {[%clk 0:01:19]}  Nxd4+ {[%clk 0:00:03]} 48. Kf6 {[%clk 0:01:19]}  Kd8 {[%clk 0:00:03]} 49. Kxg6 {[%clk 0:01:19]}  Ke8 {[%clk 0:00:03]} 50. Kf6 {[%clk 0:01:20]}  Nf3 {[%clk 0:00:04]} 51. g6 {[%clk 0:01:20]}  Nh4 {[%clk 0:00:04]} 52. g7 {[%clk 0:01:20]}  Ng6 {[%clk 0:00:05]} 53. g8=Q+ {[%clk 0:01:20]}  Nf8 {[%clk 0:00:06]} 54. Qxf8# {[%clk 0:01:20]} 1-0


[Site "https://www.chess.com"]

[Event "Titled Tuesday Blitz November 15 Late 2022"]
[White "Rorrer, Grayson"]
[Black "Fernandez Siles, Luis"]
[WhiteFideId "30944996"]
[BlackFideId "2209420"]
[WhiteElo "2130"]
[BlackElo "2186"]
[Result "1-0"]
[Round "03"]
[TimeControl "180+1"]
[Date "2022.11.16"]
[WhiteClock "0:00:39"]
[BlackClock "0:00:12"]

1. e4 {[%clk 0:03:00]}  c5 {[%clk 0:02:59]} 2. Nf3 {[%clk 0:02:56]}  Nc6 {[%clk 0:02:59]} 3. Bb5 {[%clk 0:02:55]}  g6 {[%clk 0:02:59]} 4. O-O {[%clk 0:02:56]}  Bg7 {[%clk 0:02:59]} 5. c3 {[%clk 0:02:56]}  Nf6 {[%clk 0:02:58]} 6. Re1 {[%clk 0:02:56]}  O-O {[%clk 0:02:58]} 7. d4 {[%clk 0:02:56]}  d5 {[%clk 0:02:57]} 8. e5 {[%clk 0:02:57]}  Ne4 {[%clk 0:02:57]} 9. Be3 {[%clk 0:02:57]}  Qb6 {[%clk 0:02:49]} 10. Bxc6 {[%clk 0:02:57]}  Qxc6 {[%clk 0:02:48]} 11. dxc5 {[%clk 0:02:55]}  Nxc5 {[%clk 0:02:45]} 12. Nd4 {[%clk 0:02:55]}  Qa4 {[%clk 0:02:15]} 13. b3 {[%clk 0:02:44]}  Qa6 {[%clk 0:02:14]} 14. Nf5 {[%clk 0:02:33]}  Bxf5 {[%clk 0:02:04]} 15. Bxc5 {[%clk 0:02:32]}  Rfe8 {[%clk 0:01:43]} 16. Nd2 {[%clk 0:02:24]}  Rac8 {[%clk 0:01:35]} 17. Bd4 {[%clk 0:02:24]}  b6 {[%clk 0:01:30]} 18. a4 {[%clk 0:02:15]}  Bh6 {[%clk 0:01:25]} 19. Nf1 {[%clk 0:02:08]}  Qd3 {[%clk 0:01:15]} 20. Ne3 {[%clk 0:01:56]}  Qxd1 {[%clk 0:01:12]} 21. Nxd1 {[%clk 0:01:54]}  Bc2 {[%clk 0:00:52]} 22. b4 {[%clk 0:01:52]}  Bd2 {[%clk 0:00:44]} 23. Re2 {[%clk 0:01:51]}  Bxd1 {[%clk 0:00:43]} 24. Rxd2 {[%clk 0:01:50]}  Bg4 {[%clk 0:00:41]} 25. a5 {[%clk 0:01:50]}  Ra8 {[%clk 0:00:38]} 26. h3 {[%clk 0:01:44]}  Bd7 {[%clk 0:00:35]} 27. axb6 {[%clk 0:01:43]}  axb6 {[%clk 0:00:35]} 28. Rxa8 {[%clk 0:01:40]}  Rxa8 {[%clk 0:00:36]} 29. Bxb6 {[%clk 0:01:41]}  Ra1+ {[%clk 0:00:34]} 30. Kh2 {[%clk 0:01:41]}  Bc6 {[%clk 0:00:34]} 31. Bd4 {[%clk 0:01:39]}  Kf8 {[%clk 0:00:27]} 32. b5 {[%clk 0:01:34]}  Bb7 {[%clk 0:00:20]} 33. b6 {[%clk 0:01:29]}  Ke8 {[%clk 0:00:19]} 34. h4 {[%clk 0:01:06]}  Rc1 {[%clk 0:00:19]} 35. Ra2 {[%clk 0:01:04]}  Kd7 {[%clk 0:00:19]} 36. Kg3 {[%clk 0:00:59]}  h5 {[%clk 0:00:19]} 37. Kf4 {[%clk 0:00:53]}  Re1 {[%clk 0:00:18]} 38. g3 {[%clk 0:00:45]}  Re4+ {[%clk 0:00:17]} 39. Kg5 {[%clk 0:00:45]}  Rg4+ {[%clk 0:00:17]} 40. Kh6 {[%clk 0:00:45]}  Re4 {[%clk 0:00:15]} 41. Ra7 {[%clk 0:00:43]}  Kc6 {[%clk 0:00:15]} 42. Kg7 {[%clk 0:00:44]}  f6 {[%clk 0:00:11]} 43. exf6 {[%clk 0:00:43]}  exf6 {[%clk 0:00:12]} 44. Kxg6 {[%clk 0:00:39]} 1-0


[Site "https://www.chess.com"]

[Event "Titled Tuesday Blitz November 15 Late 2022"]
[White "Sabuk, Piotr"]
[Black "Leschinsky, Gary"]
[WhiteFideId "1137565"]
[BlackFideId "30951321"]
[WhiteElo "2326"]
[BlackElo "1855"]
[Result "1-0"]
[Round "03"]
[TimeControl "180+1"]
[Date "2022.11.16"]
[WhiteClock "0:01:33"]
[BlackClock "0:00:38"]

1. Nf3 {[%clk 0:02:53]}  d5 {[%clk 0:02:58]} 2. d4 {[%clk 0:02:49]}  Nf6 {[%clk 0:02:56]} 3. c4 {[%clk 0:02:48]}  c6 {[%clk 0:02:55]} 4. g3 {[%clk 0:02:47]}  dxc4 {[%clk 0:02:50]} 5. Bg2 {[%clk 0:02:46]}  g6 {[%clk 0:02:50]} 6. O-O {[%clk 0:02:39]}  Bg7 {[%clk 0:02:50]} 7. a4 {[%clk 0:02:40]}  a5 {[%clk 0:02:47]} 8. Na3 {[%clk 0:02:39]}  Ne4 {[%clk 0:02:25]} 9. Nxc4 {[%clk 0:02:36]}  Nd6 {[%clk 0:02:25]} 10. b3 {[%clk 0:02:28]}  O-O {[%clk 0:02:22]} 11. Ba3 {[%clk 0:02:15]}  Be6 {[%clk 0:02:09]} 12. Rc1 {[%clk 0:02:07]}  Bd5 {[%clk 0:02:02]} 13. Re1 {[%clk 0:01:57]}  Ne4 {[%clk 0:01:49]} 14. Nfe5 {[%clk 0:01:51]}  Nd7 {[%clk 0:01:43]} 15. Nxd7 {[%clk 0:01:50]}  Qxd7 {[%clk 0:01:40]} 16. Nb6 {[%clk 0:01:50]}  Qf5 {[%clk 0:01:39]} 17. f3 {[%clk 0:01:45]}  Bh6 {[%clk 0:00:55]} 18. e3 {[%clk 0:01:44]}  Ng5 {[%clk 0:00:39]} 19. e4 {[%clk 0:01:43]}  Nh3+ {[%clk 0:00:37]} 20. Bxh3 {[%clk 0:01:38]}  Qxh3 {[%clk 0:00:38]} 21. Nxa8 {[%clk 0:01:33]} 1-0


[Site "https://www.chess.com"]

[Event "Titled Tuesday Blitz November 15 Late 2022"]
[White "Salman, Pavel"]
[Black "Svane, Frederik"]
[WhiteFideId "24153753"]
[BlackFideId "12923044"]
[WhiteElo "2187"]
[BlackElo "2466"]
[Result "0-1"]
[Round "03"]
[TimeControl "180+1"]
[Date "2022.11.16"]
[WhiteClock "0:01:15"]
[BlackClock "0:02:22"]

1. Nf3 {[%clk 0:02:59]}  d5 {[%clk 0:03:00]} 2. g3 {[%clk 0:02:59]}  Nd7 {[%clk 0:02:59]} 3. Bg2 {[%clk 0:02:58]}  e5 {[%clk 0:02:59]} 4. d3 {[%clk 0:02:59]}  Ngf6 {[%clk 0:02:59]} 5. O-O {[%clk 0:02:59]}  c6 {[%clk 0:03:00]} 6. Nbd2 {[%clk 0:02:59]}  Bc5 {[%clk 0:02:51]} 7. e4 {[%clk 0:02:59]}  dxe4 {[%clk 0:02:51]} 8. dxe4 {[%clk 0:02:57]}  O-O {[%clk 0:02:51]} 9. Qe2 {[%clk 0:02:56]}  a5 {[%clk 0:02:51]} 10. a4 {[%clk 0:02:55]}  b6 {[%clk 0:02:51]} 11. Rd1 {[%clk 0:02:50]}  Qe7 {[%clk 0:02:50]} 12. Nb3 {[%clk 0:02:49]}  Ba6 {[%clk 0:02:50]} 13. c4 {[%clk 0:02:30]}  h6 {[%clk 0:02:41]} 14. Nh4 {[%clk 0:02:19]}  Qe6 {[%clk 0:02:41]} 15. Nxc5 {[%clk 0:02:19]}  Nxc5 {[%clk 0:02:39]} 16. Nf5 {[%clk 0:02:03]}  Bxc4 {[%clk 0:02:36]} 17. Qe3 {[%clk 0:01:53]}  Rad8 {[%clk 0:02:35]} 18. Rxd8 {[%clk 0:01:35]}  Rxd8 {[%clk 0:02:36]} 19. Bf3 {[%clk 0:01:36]}  Nfxe4 {[%clk 0:02:23]} 20. Kg2 {[%clk 0:01:15]}  Qxf5 {[%clk 0:02:22]} 0-1


[Site "https://www.chess.com"]